fUSD/lending_fUSD_20260322
["ID","MTS","AMOUNT","RATE_DAILY","PERIOD"]
[408743179,1774185054465,-500.0,0.00042427,14]
[408743180,1774185054476,-500.0,0.00042427,14]
[408743181,1774185054486,-500.0,0.00042427,14]
[408743182,1774185054496,-500.0,0.00042427,14]
[408743183,1774185054507,-500.0,0.00042427,14]
[408743184,1774185054518,-500.0,0.00042427,14]
[408743185,1774185054528,-500.0,0.00042427,14]
[408743186,1774185054538,-500.0,0.00042427,14]
[408743187,1774185054548,-500.0,0.00042427,14]
[408743188,1774185054558,-500.0,0.00042427,14]
[408743189,1774185054568,-500.0,0.00042427,14]
[408743190,1774185054578,-500.0,0.00042427,14]
[408743191,1774185054588,-500.0,0.00042427,14]
[408743192,1774185054598,-500.0,0.00042427,14]
[408743193,1774185054608,-500.0,0.00042427,14]
[408743194,1774185054619,-500.0,0.00042427,14]
[408743195,1774185054628,-500.0,0.00042427,14]
[408743196,1774185054639,-500.0,0.00042427,14]
[408743197,1774185054649,-500.0,0.00042427,14]
[408743198,1774185054659,-500.0,0.00042427,14]
[408743199,1774185054669,-500.0,0.00042427,14]
[408743200,1774185054679,-500.0,0.00042427,14]
[408743201,1774185054690,-584.0,0.00042427,14]
[408743202,1774185054700,-200.0,0.00042427,2]
[408743203,1774185054710,-200.0,0.00042427,2]
[408743204,1774185054720,-200.0,0.00042427,2]
[408743205,1774185054730,-200.0,0.00042427,2]
[408743206,1774185054745,-200.0,0.00042427,2]
[408743207,1774185054758,-200.0,0.00042427,2]
[408743208,1774185054768,-200.0,0.00042427,2]
[408743209,1774185054778,-200.0,0.00042427,2]
[408743210,1774185054789,-200.0,0.00042427,2]
[408743211,1774185054800,-200.0,0.00042427,2]
[408743212,1774185054810,-200.0,0.00042427,2]
[408743213,1774185054820,-200.0,0.00042427,2]
[408743214,1774185054832,-200.0,0.00042427,2]
[408743215,1774185054843,-200.0,0.00042427,2]
[408743216,1774185054854,-200.0,0.00042427,2]
[408743217,1774185054864,-200.0,0.00042427,2]
[408743218,1774185054875,-200.0,0.00042427,2]
[408743219,1774185054886,-200.0,0.00042427,2]
[408743220,1774185054896,-200.0,0.00042427,2]
[408743221,1774185054907,-200.0,0.00042427,2]
[408743222,1774185054917,-200.0,0.00042427,2]
[408743223,1774185054927,-200.0,0.00042427,2]
[408743224,1774185054939,-200.0,0.00042427,2]
[408743225,1774185054950,-200.0,0.00042427,2]
[408743226,1774185054962,-200.0,0.00042427,2]
[408743227,1774185054972,-200.0,0.00042427,2]
[408743228,1774185054983,-200.0,0.00042427,2]
[408743229,1774185054994,-200.0,0.00042427,2]
[408743230,1774185055005,-200.0,0.00042427,2]
[408743231,1774185055015,-200.0,0.00042427,2]
[408743232,1774185055027,-200.0,0.00042427,2]
[408743233,1774185055038,-200.0,0.00042427,2]
[408743234,1774185055050,-200.0,0.00042427,2]
[408743235,1774185055060,-269.0,0.00042427,2]
[408743236,1774185055071,-800.0,0.00042427,13]
[408743237,1774185055081,-800.0,0.00042427,13]
[408743238,1774185055091,-800.0,0.00042427,13]
[408743239,1774185055101,-800.0,0.00042427,13]
[408743240,1774185055113,-800.0,0.00042427,13]
[408743241,1774185055123,-800.0,0.00042427,13]
[408743242,1774185055133,-800.0,0.00042427,13]
[408743243,1774185055143,-800.0,0.00042427,13]
[408743244,1774185055153,-800.0,0.00042427,13]
[408743245,1774185055163,-800.0,0.00042427,13]
[408743246,1774185055173,-800.0,0.00042427,13]
[408743247,1774185055183,-800.0,0.00042427,13]
[408743248,1774185055193,-800.0,0.00042427,13]
[408743249,1774185055203,-800.0,0.00042427,13]
[408743250,1774185055213,-500.0,0.00042438,120]
[408743251,1774185055223,-500.0,0.00042438,120]
[408743252,1774185055233,-563.323191,0.00042446,120]
[408743253,1774185055243,-563.323191,0.00042446,120]
[408743254,1774185055253,-563.323191,0.00042446,120]
[408743255,1774185055262,-563.323191,0.00042446,120]
[408743256,1774185055273,-653.622616,0.00042446,120]
[408743257,1774185055283,-653.622616,0.00042446,120]
[408743258,1774185055293,-653.622616,0.00042446,120]
[408743259,1774185055303,-653.622616,0.00042446,120]
[408743260,1774185055315,-396.0,0.00042446,120]
[408743261,1774185055325,-396.0,0.00042446,120]
[408743262,1774185055336,-396.0,0.00042446,120]
[408743263,1774185055348,-396.0,0.00042446,120]
[408743264,1774185055360,-151.0,0.00042446,30]
[408743265,1774185055370,-1246.992687,0.00042446,120]
[408743266,1774185055380,-151.0,0.00042446,30]
[408743267,1774185055391,-1246.992687,0.00042446,120]
[408743268,1774185055401,-1246.992687,0.00042446,120]
[408743269,1774185055412,-1246.992687,0.00042446,120]
[408743270,1774185055423,-151.0,0.00042446,120]
[408743271,1774185055432,-151.0,0.00042446,120]
[408743272,1774185055442,-151.0,0.00042446,120]
[408743273,1774185055452,-151.0,0.00042446,120]
[408743274,1774185055463,-151.0,0.00042446,120]
[408743275,1774185055473,-151.0,0.00042446,120]
[408743276,1774185055484,-163.0,0.00042449,120]
[408743277,1774185055493,-198.40214884,0.00042459,2]
[408743278,1774185055503,-2276.6279,0.00042462,2]
[408743279,1774185055513,-250.0,0.00042462,30]
[408743280,1774185055524,-250.0,0.00042462,30]
[408743281,1774185055534,-250.0,0.00042462,30]
[408743282,1774185055544,-159.3639,0.00042462,2]
[408743283,1774185055554,-1990.0,0.00042465,120]
[408743284,1774185055564,-851.0,0.00042466,120]
[408743285,1774185055574,-300.0,0.00042471,2]
[408743286,1774185055585,-717.54642308,0.00042471,2]
[408743287,1774185055594,-300.0,0.00042471,2]
[408743288,1774185055604,-300.0,0.00042471,2]
[408743289,1774185055615,-1086.77526194,0.00042471,2]
[408743290,1774185055625,-300.0,0.00042471,2]
[408743291,1774185055635,-300.0,0.00042471,2]
[408743292,1774185055645,-300.0,0.00042471,2]
[408743293,1774185055655,-300.0,0.00042471,2]
[408743294,1774185055666,-300.0,0.00042471,2]
[408743295,1774185055677,-300.0,0.00042471,2]
[408743296,1774185055688,-300.0,0.00042471,2]
[408743297,1774185055699,-300.0,0.00042471,2]
[408743298,1774185055709,-300.0,0.00042471,2]
[408743299,1774185055720,-300.0,0.00042471,2]
[408743300,1774185055729,-300.0,0.00042471,2]
[408743301,1774185055739,-300.0,0.00042471,2]
[408743302,1774185055753,-300.0,0.00042471,2]
[408743303,1774185055763,-300.0,0.00042471,2]
[408743304,1774185055773,-301.000602,0.00042471,2]
[408743305,1774185055783,-300.0,0.00042471,2]
[408743306,1774185055794,-300.0,0.00042471,2]
[408743307,1774185055803,-300.0,0.00042471,2]
[408743308,1774185055812,-600.11635329,0.00042471,2]
[408743309,1774185055823,-300.0,0.00042471,2]
[408743310,1774185055832,-300.0,0.00042471,2]
[408743311,1774185055842,-300.0,0.00042471,2]
[408743312,1774185055852,-300.0,0.00042471,2]
[408743313,1774185055861,-555.90105714,0.00042471,2]
[408743314,1774185055871,-300.0,0.00042471,2]
[408743315,1774185055880,-300.3537239,0.00042471,2]
[408743316,1774185055890,-300.0,0.00042471,2]
[408743317,1774185055900,-300.0,0.00042471,2]
[408743318,1774185055910,-1138.86212569,0.00042471,2]
[408743319,1774185055919,-307.35924896,0.00042471,2]
[408743320,1774185055929,-300.0,0.00042471,2]
[408743321,1774185055938,-858.24055709,0.00042471,2]
[408743322,1774185055949,-300.0,0.00042471,2]
[408743323,1774185055959,-300.0,0.00042471,2]
[408743324,1774185055970,-300.0,0.00042471,2]
[408743325,1774185055980,-300.0,0.00042471,2]
[408743326,1774185055990,-308.63412797,0.00042471,2]
[408743327,1774185056000,-300.0,0.00042471,2]
[408743328,1774185056010,-300.0,0.00042471,2]
[408743329,1774185056019,-300.0,0.00042471,2]
[408743330,1774185056029,-460.5100828,0.00042471,2]
[408743331,1774185056039,-300.0,0.00042471,2]
[408743332,1774185056049,-300.0,0.00042471,2]
[408743333,1774185056059,-300.0,0.00042471,2]
[408743334,1774185056068,-448.59580951,0.00042471,2]
[408743335,1774185056078,-300.0,0.00042471,2]
[408743336,1774185056088,-300.0,0.00042471,2]
[408743337,1774185056097,-300.0,0.00042471,2]
[408743338,1774185056107,-300.0,0.00042471,2]
[408743339,1774185056117,-300.0,0.00042471,2]
[408743340,1774185056126,-300.0,0.00042471,2]
[408743341,1774185056136,-520.90741423,0.00042471,2]
[408743342,1774185056145,-307.59307592,0.00042471,2]
[408743343,1774185056155,-300.0,0.00042471,2]
[408743344,1774185056164,-300.0,0.00042471,2]
[408743345,1774185056174,-300.0,0.00042471,2]
[408743346,1774185056183,-417.11348177,0.00042471,2]
[408743347,1774185056193,-300.0,0.00042471,2]
[408743348,1774185056203,-300.0,0.00042471,2]
[408743349,1774185056212,-717.54642308,0.00042471,2]
[408743350,1774185056222,-300.0,0.00042471,2]
[408743351,1774185056231,-300.0,0.00042471,2]
[408743352,1774185056240,-1086.77526194,0.00042471,2]
[408743353,1774185056250,-300.0,0.00042471,2]
[408743354,1774185056259,-300.0,0.00042471,2]
[408743355,1774185056268,-300.0,0.00042471,2]
[408743356,1774185056277,-300.0,0.00042471,2]
[408743357,1774185056287,-300.0,0.00042471,2]
[408743358,1774185056296,-300.0,0.00042471,2]
[408743359,1774185056306,-300.0,0.00042471,2]
[408743360,1774185056315,-300.0,0.00042471,2]
[408743361,1774185056324,-300.0,0.00042471,2]
[408743362,1774185056334,-300.0,0.00042471,2]
[408743363,1774185056343,-300.0,0.00042471,2]
[408743364,1774185056352,-300.0,0.00042471,2]
[408743365,1774185056362,-300.0,0.00042471,2]
[408743366,1774185056373,-300.0,0.00042471,2]
[408743367,1774185056383,-300.0,0.00042471,2]
[408743368,1774185056392,-301.000602,0.00042471,2]
[408743369,1774185056402,-300.0,0.00042471,2]
[408743370,1774185056411,-300.0,0.00042471,2]
[408743371,1774185056420,-300.0,0.00042471,2]
[408743372,1774185056430,-300.0,0.00042471,2]
[408743373,1774185056439,-600.11635329,0.00042471,2]
[408743374,1774185056448,-300.0,0.00042471,2]
[408743375,1774185056459,-300.0,0.00042471,2]
[408743376,1774185056468,-300.0,0.00042471,2]
[408743377,1774185056478,-300.0,0.00042471,2]
[408743378,1774185056487,-555.90105714,0.00042471,2]
[408743379,1774185056497,-300.3537239,0.00042471,2]
[408743380,1774185056516,-300.0,0.00042471,2]
[408743381,1774185056525,-300.0,0.00042471,2]
[408743382,1774185056535,-300.0,0.00042471,2]
[408743383,1774185056543,-1138.86212569,0.00042471,2]
[408743384,1774185056553,-307.35924896,0.00042471,2]
[408743385,1774185056562,-300.0,0.00042471,2]
[408743386,1774185056572,-858.24055709,0.00042471,2]
[408743387,1774185056581,-300.0,0.00042471,2]
[408743388,1774185056591,-300.0,0.00042471,2]
[408743389,1774185056600,-300.0,0.00042471,2]
[408743390,1774185056610,-300.0,0.00042471,2]
[408743391,1774185056620,-308.63412797,0.00042471,2]
[408743392,1774185056629,-300.0,0.00042471,2]
[408743393,1774185056638,-300.0,0.00042471,2]
[408743394,1774185056647,-300.0,0.00042471,2]
[408743395,1774185056657,-460.5100828,0.00042471,2]
[408743396,1774185056666,-300.0,0.00042471,2]
[408743397,1774185056676,-300.0,0.00042471,2]
[408743398,1774185056686,-300.0,0.00042471,2]
[408743399,1774185056695,-448.59580951,0.00042471,2]
[408743400,1774185056704,-300.0,0.00042471,2]
[408743401,1774185056714,-300.0,0.00042471,2]
[408743402,1774185056724,-300.0,0.00042471,2]
[408743403,1774185056733,-153.0,0.000425,120]
[408743404,1774185056742,-10000.0,0.000425,120]
[408743405,1774185056756,-10000.0,0.000425,120]
[408743406,1774185056765,-10000.0,0.000425,120]
[408743407,1774185056774,-150.0,0.00042539,2]
[408743408,1774185056784,-3283.0321845,0.00042539,2]
[408743409,1774185056794,-150.0,0.00042539,2]
[408743410,1774185056803,-21041.2452988,0.00042539,2]
[408743411,1774185056813,-150.0,0.00042539,2]
[408743412,1774185056825,-6940.61553039,0.00042539,2]
[408743413,1774185056834,-2781.34,0.00042546,120]
[408743414,1774185056844,-364.83,0.00042546,120]
[408743415,1774185056854,-637.98,0.00042546,120]
[408743416,1774185056863,-1525.85,0.00042546,120]
[408743417,1774185056872,-1135.45,0.00042546,120]
[408743418,1774185056881,-500.0,0.00042575,120]
[408743419,1774185056891,-500.0,0.00042575,120]
[408743420,1774185056900,-1093.0,0.00042576,30]
[408743421,1774185056909,-200.0,0.00042601,9]
[408743422,1774185056919,-200.0,0.00042601,9]
[408743423,1774185056929,-200.0,0.00042601,9]
[408743424,1774185056938,-200.0,0.00042601,9]
[408743425,1774185056948,-200.0,0.00042601,9]
[408743426,1774185056958,-200.0,0.00042601,9]
[408743427,1774185056967,-200.0,0.00042601,9]
[408743428,1774185056976,-200.0,0.00042601,9]
[408743429,1774185056986,-500.0,0.00042655,120]
[408743430,1774185056996,-500.0,0.00042712,120]
[408743431,1774185057006,-500.0,0.00042712,120]
[408743432,1774185057015,-1990.0,0.00042739,120]
[408743433,1774185057024,-851.0,0.0004274,120]
[408743434,1774185057034,-450.0,0.0004274,10]
[408743435,1774185057044,-709.19807329,0.0004274,120]
[408743436,1774185057054,-151.5,0.00042749,2]
[408743437,1774185057064,-178.561,0.00042758,120]
[408743438,1774185057074,-1063.43,0.00042785,120]
[408743439,1774185057085,-403.34,0.000428,120]
[408743440,1774185057095,-371.06,0.000428,120]
[408743441,1774185057105,-2276.6279,0.00042816,2]
[408743442,1774185057115,-420.49,0.00042846,120]
[408743443,1774185057125,-500.0,0.00042849,120]
[408743444,1774185057135,-500.0,0.00042849,120]
[408743445,1774185057145,-619.22,0.00042854,2]
[408743446,1774185057155,-2476.89,0.00042854,2]
[408743447,1774185057165,-862.49,0.00042854,2]
[408743448,1774185057175,-150.0,0.0004287,7]
[408743449,1774185057184,-1261.0,0.00042913,2]
[408743450,1774185057194,-1215.0,0.00042913,2]
[408743451,1774185057204,-9867.10842627,0.00042927,120]
[408743452,1774185057213,-150.0,0.00042944,14]
[408743453,1774185057223,-150.0,0.00042959,14]
[408743454,1774185057232,-151.5,0.00042973,2]
[408743455,1774185057242,-726.35,0.00042983,90]
[408743456,1774185057252,-500.0,0.00042986,120]
[408743457,1774185057262,-500.0,0.00042986,120]
[408743458,1774185057271,-500.0,0.00043,45]
[408743459,1774185057281,-309.46,0.00043,18]
[408743460,1774185057291,-500.0,0.00043,45]
[408743461,1774185057301,-500.0,0.00043,45]
[408743462,1774185057311,-246.0975821,0.00043,7]
[408743463,1774185057320,-246.0975821,0.00043,7]
[408743464,1774185057330,-500.0,0.00043,45]
[408743465,1774185057340,-245.9876349,0.00043,7]
[408743466,1774185057350,-500.0,0.00043,45]
[408743467,1774185057360,-245.9876349,0.00043,7]
[408743468,1774185057370,-500.0,0.00043,45]
[408743469,1774185057379,-500.0,0.00043,45]
[408743470,1774185057389,-924.0,0.00043003,2]
[408743471,1774185057400,-6008.0,0.00043003,2]
[408743472,1774185057409,-2466.0,0.00043003,2]
[408743473,1774185057419,-150.0,0.00043006,14]
[408743474,1774185057428,-1990.0,0.00043013,120]
[408743475,1774185057438,-851.0,0.00043014,120]
[408743476,1774185057447,-400.01,0.00043068,120]
[408743477,1774185057457,-151.5,0.00043079,2]
[408743478,1774185057466,-420.49,0.0004312,120]
[408743479,1774185057475,-500.0,0.00043123,120]
[408743480,1774185057485,-231.43330962,0.00043123,120]
[408743481,1774185057494,-2276.6279,0.0004317,2]
[408743482,1774185057504,-155.0,0.000432,120]
[408743483,1774185057513,-150.0,0.00043205,14]
[408743484,1774185057523,-161.0,0.00043225,16]
[408743485,1774185057532,-151.5,0.00043232,2]
[408743486,1774185057542,-150.0,0.00043243,14]
[408743487,1774185057551,-150.0,0.00043245,14]
[408743488,1774185057561,-150.0,0.00043254,14]
[408743489,1774185057570,-500.0,0.0004326,120]
[408743490,1774185057580,-150.0,0.00043263,14]
[408743491,1774185057593,-287.49599877,0.00043279,2]
[408743492,1774185057615,-1990.0,0.00043287,120]
[408743493,1774185057629,-851.0,0.00043288,120]
[408743494,1774185057647,-550.0,0.00043288,10]
[408743495,1774185057664,-153.0,0.000433,120]
[408743496,1774185057681,-185.33731451,0.00043302,14]
[408743497,1774185057698,-150.0,0.00043307,14]
[408743498,1774185057713,-151.0,0.00043315,60]
[408743499,1774185057729,-200.0,0.00043315,120]
[408743500,1774185057745,-200.0,0.00043315,120]
[408743501,1774185057764,-200.0,0.00043315,120]
[408743502,1774185057782,-192.16,0.00043315,120]
[408743503,1774185057798,-250.0,0.00043315,98]
[408743504,1774185057816,-180.0,0.00043318,2]
[408743505,1774185057834,-500.0,0.00043333,27]
[408743506,1774185057849,-150.0,0.00043335,14]
[408743507,1774185057865,-150.0,0.00043336,14]
[408743508,1774185057885,-744.88978382,0.0004334,2]
[408743509,1774185057903,-250.0,0.00043345,98]
[408743510,1774185057918,-254.72603243,0.00043351,14]
[408743511,1774185057930,-250.0,0.00043375,98]
[408743512,1774185057947,-1093.0,0.0004338,30]
[408743513,1774185057963,-420.49,0.00043394,120]
[408743514,1774185057974,-594.75146217,0.00043397,120]
[408743515,1774185057988,-150.0,0.000434,14]
[408743516,1774185058007,-376.66438,0.000434,120]
[408743517,1774185058020,-376.66439,0.000434,120]
[408743518,1774185058034,-376.66439,0.000434,120]
[408743519,1774185058048,-376.66438,0.000434,120]
[408743520,1774185058061,-376.66439,0.000434,120]
[408743521,1774185058074,-250.0,0.00043404,99]
[408743522,1774185058087,-152.68821992,0.00043405,14]
[408743523,1774185058100,-250.0,0.00043433,99]
[408743524,1774185058115,-150.0,0.00043434,14]
[408743525,1774185058131,-250.0,0.00043461,99]
[408743526,1774185058146,-150.0,0.00043485,14]
[408743527,1774185058162,-250.0,0.00043489,99]
[408743528,1774185058178,-500.0,0.000435,45]
[408743529,1774185058193,-500.0,0.000435,45]
[408743530,1774185058208,-500.0,0.000435,45]
[408743531,1774185058222,-150.0,0.000435,120]
[408743532,1774185058236,-150.0,0.000435,120]
[408743533,1774185058249,-500.0,0.000435,45]
[408743534,1774185058262,-500.0,0.000435,45]
[408743535,1774185058276,-500.0,0.000435,45]
[408743536,1774185058289,-250.0,0.00043517,99]
[408743537,1774185058303,-2276.6279,0.00043524,2]
[408743538,1774185058316,-250.0,0.00043545,100]
[408743539,1774185058330,-153.93761613,0.0004356,30]
[408743540,1774185058345,-193.13939547,0.0004356,30]
[408743541,1774185058361,-150.0,0.0004356,30]
[408743542,1774185058376,-246.62813809,0.0004356,30]
[408743543,1774185058389,-202.50518274,0.0004356,30]
[408743544,1774185058402,-270.22810863,0.0004356,30]
[408743545,1774185058415,-150.0,0.0004356,30]
[408743546,1774185058429,-150.0,0.0004356,30]
[408743547,1774185058442,-150.0,0.0004356,30]
[408743548,1774185058455,-150.0,0.0004356,30]
[408743549,1774185058469,-150.0,0.0004356,30]
[408743550,1774185058496,-150.0,0.0004356,30]
[408743551,1774185058510,-200.05121635,0.0004356,30]
[408743552,1774185058524,-1990.0,0.00043561,120]
[408743553,1774185058538,-851.0,0.00043562,120]
[408743554,1774185058552,-250.0,0.00043572,100]
[408743555,1774185058565,-11973.30592714,0.00043598,120]
[408743556,1774185058578,-250.0,0.00043598,100]
[408743557,1774185058591,-150.0,0.00043601,14]
[408743558,1774185058604,-153.93761613,0.00043609,30]
[408743559,1774185058617,-193.13939547,0.00043609,30]
[408743560,1774185058630,-246.62813809,0.00043609,30]
[408743561,1774185058642,-202.50518274,0.00043609,30]
[408743562,1774185058655,-270.22810863,0.00043609,30]
[408743563,1774185058668,-250.0,0.00043625,100]
[408743564,1774185058680,-200.0,0.00043638,120]
[408743565,1774185058692,-150.0,0.00043638,30]
[408743566,1774185058705,-150.0,0.00043643,30]
[408743567,1774185058717,-150.0,0.00043648,30]
[408743568,1774185058729,-16579.0,0.0004365,60]
[408743569,1774185058742,-250.0,0.00043651,101]
[408743570,1774185058759,-153.93761613,0.00043658,30]
[408743571,1774185058772,-193.13939547,0.00043658,30]
[408743572,1774185058786,-246.62813809,0.00043658,30]
[408743573,1774185058801,-202.50518274,0.00043658,30]
[408743574,1774185058814,-270.22810863,0.00043658,30]
[408743575,1774185058828,-150.0,0.00043663,2]
[408743576,1774185058842,-150.0,0.00043663,2]
[408743577,1774185058855,-150.0,0.00043663,2]
[408743578,1774185058867,-150.0,0.00043663,2]
[408743579,1774185058880,-621.0,0.00043663,2]
[408743580,1774185058893,-1345.0,0.00043663,2]
[408743581,1774185058905,-1044.0,0.00043663,2]
[408743582,1774185058919,-151.0,0.00043667,7]
[408743583,1774185058931,-420.49,0.00043668,120]
[408743584,1774185058944,-1311.61214647,0.00043671,30]
[408743585,1774185058962,-250.0,0.00043677,101]
[408743586,1774185058974,-250.0,0.00043702,101]
[408743587,1774185058987,-153.93761613,0.00043707,30]
[408743588,1774185058999,-193.13939547,0.00043707,30]
[408743589,1774185059011,-246.62813809,0.00043707,30]
[408743590,1774185059024,-202.50518274,0.00043707,30]
[408743591,1774185059037,-270.22810863,0.00043707,30]
[408743592,1774185059050,-150.0,0.00043716,30]
[408743593,1774185059063,-150.0,0.00043727,30]
[408743594,1774185059076,-250.0,0.00043727,102]
[408743595,1774185059090,-150.0,0.00043736,30]
[408743596,1774185059103,-187.3890475,0.00043739,7]
[408743597,1774185059116,-4061.86581865,0.00043747,120]
[408743598,1774185059128,-250.0,0.00043752,102]
[408743599,1774185059141,-153.93761613,0.00043756,30]
[408743600,1774185059152,-193.13939547,0.00043756,30]
[408743601,1774185059165,-246.62813809,0.00043756,30]
[408743602,1774185059177,-202.50518274,0.00043756,30]
[408743603,1774185059189,-270.22810863,0.00043756,30]
[408743604,1774185059201,-150.0,0.00043775,2]
[408743605,1774185059215,-150.0,0.00043775,2]
[408743606,1774185059227,-150.0,0.00043775,2]
[408743607,1774185059240,-150.0,0.00043775,2]
[408743608,1774185059252,-150.0,0.00043775,2]
[408743609,1774185059265,-150.0,0.00043775,2]
[408743610,1774185059276,-199.51664943,0.00043775,2]
[408743611,1774185059288,-160.0,0.00043775,14]
[408743612,1774185059301,-151.0,0.00043775,14]
[408743613,1774185059313,-226.61972177,0.00043775,14]
[408743614,1774185059326,-151.0,0.00043775,14]
[408743615,1774185059338,-1521.0,0.00043775,14]
[408743616,1774185059350,-160.0,0.00043775,14]
[408743617,1774185059362,-164.74526196,0.00043775,14]
[408743618,1774185059375,-153.0,0.00043775,14]
[408743619,1774185059387,-239.0021021,0.00043775,14]
[408743620,1774185059399,-1521.0,0.00043775,14]
[408743621,1774185059412,-1521.0,0.00043775,14]
[408743622,1774185059424,-1521.0,0.00043775,14]
[408743623,1774185059436,-151.0,0.00043775,14]
[408743624,1774185059449,-1521.0,0.00043775,14]
[408743625,1774185059461,-151.0,0.00043775,14]
[408743626,1774185059473,-1521.0,0.00043775,14]
[408743627,1774185059487,-151.0,0.00043775,14]
[408743628,1774185059499,-1521.0,0.00043775,14]
[408743629,1774185059513,-151.0,0.00043775,14]
[408743630,1774185059526,-1521.0,0.00043775,14]
[408743631,1774185059538,-153.78487307,0.00043775,14]
[408743632,1774185059551,-1521.0,0.00043775,14]
[408743633,1774185059563,-1521.0,0.00043775,14]
[408743634,1774185059574,-1521.0,0.00043775,14]
[408743635,1774185059587,-441.788209,0.00043775,14]
[408743636,1774185059599,-167.0,0.00043775,7]
[408743637,1774185059611,-167.0,0.00043775,7]
[408743638,1774185059623,-167.0,0.00043775,7]
[408743639,1774185059635,-167.0,0.00043775,7]
[408743640,1774185059648,-167.0,0.00043775,7]
[408743641,1774185059660,-167.0,0.00043775,7]
[408743642,1774185059671,-167.0,0.00043775,7]
[408743643,1774185059684,-181.90311346,0.00043775,7]
[408743644,1774185059696,-623.583206,0.00043776,120]
[408743645,1774185059707,-623.583206,0.00043776,120]
[408743646,1774185059719,-623.583206,0.00043776,120]
[408743647,1774185059730,-623.583206,0.00043776,120]
[408743648,1774185059743,-151.0,0.00043776,60]
[408743649,1774185059760,-151.0,0.00043776,60]
[408743650,1774185059772,-671.220097,0.00043776,120]
[408743651,1774185059783,-671.220097,0.00043776,120]
[408743652,1774185059796,-671.220097,0.00043776,120]
[408743653,1774185059808,-671.220097,0.00043776,120]
[408743654,1774185059821,-288.684885,0.00043776,120]
[408743655,1774185059832,-288.684885,0.00043776,120]
[408743656,1774185059844,-288.684885,0.00043776,120]
[408743657,1774185059856,-288.684885,0.00043776,120]
[408743658,1774185059868,-500.0,0.00043776,60]
[408743659,1774185059881,-500.0,0.00043776,60]
[408743660,1774185059893,-500.0,0.00043776,60]
[408743661,1774185059905,-300.00284577,0.00043776,60]
[408743662,1774185059917,-500.0,0.00043776,60]
[408743663,1774185059929,-500.0,0.00043776,60]
[408743664,1774185059941,-500.0,0.00043776,60]
[408743665,1774185059953,-500.0,0.00043776,60]
[408743666,1774185059964,-500.0,0.00043776,60]
[408743667,1774185059976,-150.0,0.00043776,60]
[408743668,1774185059988,-209.54298795,0.00043776,60]
[408743669,1774185060000,-150.0,0.00043776,2]
[408743670,1774185060012,-500.0,0.00043776,60]
[408743671,1774185060026,-500.0,0.00043776,60]
[408743672,1774185060038,-500.0,0.00043776,60]
[408743673,1774185060050,-500.0,0.00043776,60]
[408743674,1774185060063,-500.0,0.00043776,60]
[408743675,1774185060075,-500.0,0.00043776,60]
[408743676,1774185060088,-500.0,0.00043776,60]
[408743677,1774185060100,-500.0,0.00043776,60]
[408743678,1774185060112,-500.0,0.00043776,60]